[Event "Live Chess"]
[Site "Chess.com"]
[Date "2023.05.21"]
[Round "-"]
[White "toxic_rabbit"]
[Black "YrrriKharkiv"]
[Result "0-1"]
[WhiteElo "1980"]
[BlackElo "2058"]
[TimeControl "300"]
[EndTime "0:16:01 PDT"]
[Termination "YrrriKharkiv won by resignation"]

1. e4 {[%clk 0:04:59.1]} 1... e6 {[%clk 0:04:58.5]} 2. d4 {[%clk 0:04:58.2]}
2... d5 {[%clk 0:04:57.8]} 3. exd5 {[%clk 0:04:57.4]} 3... exd5 {[%clk
0:04:56.7]} 4. Nf3 {[%clk 0:04:57.3]} 4... Bd6 {[%clk 0:04:56]} 5. Bd3 {[%clk
0:04:56.8]} 5... Ne7 {[%clk 0:04:55.3]} 6. O-O {[%clk 0:04:56.3]} 6... Nd7
{[%clk 0:04:54.8]} 7. c4 {[%clk 0:04:55.9]} 7... c6 {[%clk 0:04:53.7]} 8. Nc3
{[%clk 0:04:55.4]} 8... O-O {[%clk 0:04:52.5]} 9. Re1 {[%clk 0:04:54.9]} 9...
Re8 {[%clk 0:04:51.3]} 10. Bg5 {[%clk 0:04:53.6]} 10... f6 {[%clk 0:04:50.3]}
11. Bh4 {[%clk 0:04:53.1]} 11... Nf8 {[%clk 0:04:48.6]} 12. Bg3 {[%clk
0:04:52.4]} 12... Bxg3 {[%clk 0:04:46.9]} 13. hxg3 {[%clk 0:04:52.3]} 13... Bg4
{[%clk 0:04:45.9]} 14. Qb3 {[%clk 0:04:50.2]} 14... Qd7 {[%clk 0:04:40.7]} 15.
Nh2 {[%clk 0:04:39.7]} 15... Be6 {[%clk 0:04:38.5]} 16. cxd5 {[%clk 0:04:29.1]}
16... Bxd5 {[%clk 0:04:32.6]} 17. Nxd5 {[%clk 0:04:27.4]} 17... Nxd5 {[%clk
0:04:27.9]} 18. Bc4 {[%clk 0:04:21.6]} 18... Ne6 {[%clk 0:04:25]} 19. Nf1 {[%clk
0:04:17.9]} 19... Nxd4 {[%clk 0:04:20.3]} 20. Qd3 {[%clk 0:04:13.3]} 20... Ne6
{[%clk 0:04:12.1]} 21. Rad1 {[%clk 0:03:59.6]} 21... Nec7 {[%clk 0:04:10.8]} 22.
Ne3 {[%clk 0:03:55.5]} 22... Kh8 {[%clk 0:04:06.4]} 23. Nxd5 {[%clk 0:03:49.5]}
23... Rxe1+ {[%clk 0:04:03.8]} 24. Rxe1 {[%clk 0:03:49.4]} 24... Nxd5 {[%clk
0:04:01.4]} 25. Bxd5 {[%clk 0:03:46.9]} 25... cxd5 {[%clk 0:03:59.8]} 26. Qa3
{[%clk 0:03:37]} 26... a6 {[%clk 0:03:37.2]} 27. Re7 {[%clk 0:03:31.2]} 27...
Qc6 {[%clk 0:03:34.7]} 28. Qb4 {[%clk 0:03:22.6]} 28... b5 {[%clk 0:03:25.7]}
29. Qg4 {[%clk 0:03:06.7]} 29... Rg8 {[%clk 0:03:17.4]} 30. Qf4 {[%clk
0:02:43.2]} 30... Rd8 {[%clk 0:03:07.1]} 31. Qg4 {[%clk 0:02:15.1]} 31... Qc1+
{[%clk 0:02:44.7]} 32. Kh2 {[%clk 0:02:07.8]} 32... Qg5 {[%clk 0:02:36.2]} 33.
Qe6 {[%clk 0:01:52.2]} 33... Qh5+ {[%clk 0:02:29]} 34. Kg1 {[%clk 0:01:49.9]}
34... d4 {[%clk 0:02:26.6]} 35. Qb6 {[%clk 0:01:25.3]} 35... Qd5 {[%clk
0:02:07.6]} 36. Qa7 {[%clk 0:01:06.4]} 36... Qg5 {[%clk 0:01:50.1]} 37. Qb6
{[%clk 0:01:00]} 37... Qd5 {[%clk 0:01:41.9]} 38. Qa7 {[%clk 0:00:58]} 38... Rg8
{[%clk 0:01:40.2]} 39. Rd7 {[%clk 0:00:56.5]} 39... Qxa2 {[%clk 0:01:38.9]} 40.
Rxd4 {[%clk 0:00:54.5]} 40... Qxb2 {[%clk 0:01:37.2]} 41. Rd6 {[%clk 0:00:51.1]}
41... a5 {[%clk 0:01:29.5]} 42. Qxa5 {[%clk 0:00:48.4]} 42... Qc1+ {[%clk
0:01:26.7]} 43. Kh2 {[%clk 0:00:45.8]} 43... Qh6+ {[%clk 0:01:24]} 44. Kg1
{[%clk 0:00:44.7]} 44... Re8 {[%clk 0:01:19.6]} 45. Rd8 {[%clk 0:00:37.9]} 45...
Qc1+ {[%clk 0:01:11.4]} 46. Kh2 {[%clk 0:00:36.9]} 46... Qh6+ {[%clk 0:01:11]}
47. Kg1 {[%clk 0:00:36.1]} 47... Qg6 {[%clk 0:01:10.2]} 48. Rd1 {[%clk
0:00:30.6]} 48... Qf5 {[%clk 0:01:01.8]} 49. Rd8 {[%clk 0:00:26.2]} 49... Qg6
{[%clk 0:00:56.2]} 50. Rd1 {[%clk 0:00:25.1]} 50... h6 {[%clk 0:00:55.1]} 51.
Qxb5 {[%clk 0:00:23.5]} 51... Qc2 {[%clk 0:00:53.5]} 52. Qf1 {[%clk 0:00:23.4]}
52... Re2 {[%clk 0:00:50.9]} 53. Rc1 {[%clk 0:00:23.3]} 53... Qd2 {[%clk
0:00:49.5]} 54. Rc8+ {[%clk 0:00:22.5]} 54... Kh7 {[%clk 0:00:47.8]} 55. Qb1+
{[%clk 0:00:22.1]} 55... f5 {[%clk 0:00:40]} 56. Qa1 {[%clk 0:00:21.9]} 56...
Re1+ {[%clk 0:00:38.3]} 57. Qxe1 {[%clk 0:00:20.5]} 57... Qxe1+ {[%clk
0:00:37.7]} 0-1

[Event "Live Chess"]
[Site "Chess.com"]
[Date "2023.05.21"]
[Round "-"]
[White "AttackingSnowLeopard"]
[Black "profpirate4"]
[Result "1-0"]
[WhiteElo "2192"]
[BlackElo "1265"]
[TimeControl "300"]
[EndTime "0:16:06 PDT"]
[Termination "AttackingSnowLeopard won by checkmate"]

1. d4 {[%clk 0:04:58.9]} 1... f5 {[%clk 0:04:58.2]} 2. Nf3 {[%clk 0:04:57.3]}
2... e6 {[%clk 0:04:57.5]} 3. d5 {[%clk 0:04:56.2]} 3... exd5 {[%clk 0:04:49.4]}
4. Qxd5 {[%clk 0:04:54.6]} 4... Nf6 {[%clk 0:04:46.2]} 5. Qxf5 {[%clk
0:04:53.4]} 5... d6 {[%clk 0:04:41.3]} 6. Qd3 {[%clk 0:04:52.1]} 6... Bg4 {[%clk
0:04:39.5]} 7. Nc3 {[%clk 0:04:50.8]} 7... Nc6 {[%clk 0:04:38.1]} 8. Bg5 {[%clk
0:04:48.8]} 8... Qd7 {[%clk 0:04:25.8]} 9. O-O-O {[%clk 0:04:45.2]} 9... O-O-O
{[%clk 0:04:24.8]} 10. Bxf6 {[%clk 0:04:41.9]} 10... gxf6 {[%clk 0:04:23.3]} 11.
h3 {[%clk 0:04:41.4]} 11... Bf5 {[%clk 0:04:22.2]} 12. e4 {[%clk 0:04:40.5]}
12... Be6 {[%clk 0:04:19.5]} 13. Nd5 {[%clk 0:04:39.8]} 13... Bh6+ {[%clk
0:04:09.2]} 14. Kb1 {[%clk 0:04:38.2]} 14... Ne5 {[%clk 0:04:02]} 15. Nxe5
{[%clk 0:04:36.5]} 15... fxe5 {[%clk 0:04:00.9]} 16. Be2 {[%clk 0:04:36]} 16...
c6 {[%clk 0:03:56.2]} 17. Nf6 {[%clk 0:04:31.2]} 17... Qf7 {[%clk 0:03:47.1]}
18. Ng4 {[%clk 0:04:24.7]} 18... Bf8 {[%clk 0:03:38.7]} 19. a3 {[%clk
0:04:17.9]} 19... h5 {[%clk 0:03:36.6]} 20. Ne3 {[%clk 0:04:15.9]} 20... Qxf2
{[%clk 0:03:35]} 21. Rdf1 {[%clk 0:04:06.9]} 21... Qh4 {[%clk 0:03:22.4]} 22. g4
{[%clk 0:04:01.2]} 22... Qg5 {[%clk 0:03:04.1]} 23. gxh5 {[%clk 0:03:57]} 23...
Bh6 {[%clk 0:02:56.8]} 24. Nf5 {[%clk 0:03:55.7]} 24... Bxf5 {[%clk 0:02:55.8]}
25. Rxf5 {[%clk 0:03:55.6]} 25... Qh4 {[%clk 0:02:48]} 26. Bg4 {[%clk 0:03:53]}
26... Kb8 {[%clk 0:02:45.3]} 27. Rf7 {[%clk 0:03:49]} 27... Rhf8 {[%clk
0:02:26.1]} 28. Rhf1 {[%clk 0:03:46.9]} 28... Qg5 {[%clk 0:02:14.8]} 29. Qb3
{[%clk 0:03:42.3]} 29... b6 {[%clk 0:02:04]} 30. Qe6 {[%clk 0:03:33.2]} 30...
Rxf7 {[%clk 0:01:59.8]} 31. Rxf7 {[%clk 0:03:30.6]} 31... Qc1+ {[%clk
0:01:56.5]} 32. Ka2 {[%clk 0:03:28.2]} 32... Qxc2 {[%clk 0:01:43.1]} 33. Bd1
{[%clk 0:02:39.2]} 33... Qxd1 {[%clk 0:01:28.9]} 34. Qe7 {[%clk 0:02:36.4]}
34... Kc8 {[%clk 0:01:03.1]} 35. Qb7# {[%clk 0:02:34]} 1-0

[Event "Live Chess"]
[Site "Chess.com"]
[Date "2023.05.21"]
[Round "-"]
[White "AlanPaling"]
[Black "raminguy"]
[Result "0-1"]
[WhiteElo "1368"]
[BlackElo "1938"]
[TimeControl "300"]
[EndTime "0:16:14 PDT"]
[Termination "raminguy won by resignation"]

1. c4 {[%clk 0:04:58.1]} 1... e6 {[%clk 0:04:58.6]} 2. g3 {[%clk 0:04:55.7]}
2... d5 {[%clk 0:04:58.1]} 3. Bg2 {[%clk 0:04:55.1]} 3... Nf6 {[%clk 0:04:56.2]}
4. Nf3 {[%clk 0:04:52.6]} 4... Be7 {[%clk 0:04:55.3]} 5. b3 {[%clk 0:04:51.3]}
5... O-O {[%clk 0:04:53.3]} 6. Bb2 {[%clk 0:04:50.4]} 6... a6 {[%clk 0:04:52.1]}
7. O-O {[%clk 0:04:48.6]} 7... dxc4 {[%clk 0:04:50.4]} 8. bxc4 {[%clk
0:04:46.8]} 8... c5 {[%clk 0:04:49.5]} 9. d4 {[%clk 0:04:44.1]} 9... Nc6 {[%clk
0:04:45.6]} 10. d5 {[%clk 0:04:38]} 10... exd5 {[%clk 0:04:44]} 11. cxd5 {[%clk
0:04:32]} 11... Qxd5 {[%clk 0:04:39.5]} 12. Qxd5 {[%clk 0:04:29.6]} 12... Nxd5
{[%clk 0:04:37.9]} 13. Rd1 {[%clk 0:04:20.5]} 13... Nf6 {[%clk 0:04:35.9]} 14.
Nc3 {[%clk 0:04:14.7]} 14... Be6 {[%clk 0:04:30.4]} 15. Na4 {[%clk 0:04:04.6]}
15... b5 {[%clk 0:04:20.5]} 16. Nc3 {[%clk 0:03:47.7]} 16... Rad8 {[%clk
0:04:14.6]} 17. Ng5 {[%clk 0:03:36.3]} 17... Nd4 {[%clk 0:03:17.4]} 18. Nxe6
{[%clk 0:03:27.5]} 18... Nxe6 {[%clk 0:03:15.2]} 19. Ne4 {[%clk 0:03:25.5]}
19... Nxe4 {[%clk 0:03:11.6]} 20. Bxe4 {[%clk 0:03:22.7]} 20... c4 {[%clk
0:02:56.2]} 21. Bb7 {[%clk 0:03:16.9]} 21... a5 {[%clk 0:02:53.9]} 22. Ba6
{[%clk 0:03:14]} 22... Rb8 {[%clk 0:02:51.6]} 23. Rd7 {[%clk 0:03:07.7]} 23...
Bf6 {[%clk 0:02:29.3]} 24. Bxf6 {[%clk 0:02:57.8]} 24... gxf6 {[%clk 0:02:28.2]}
25. Rb1 {[%clk 0:02:49.2]} 25... Nc5 {[%clk 0:02:24.7]} 26. Rd6 {[%clk
0:02:45.1]} 26... Nxa6 {[%clk 0:02:22.4]} 27. Rxa6 {[%clk 0:02:43.5]} 27... a4
{[%clk 0:02:09.1]} 28. Ra5 {[%clk 0:02:37.5]} 28... c3 {[%clk 0:01:44.2]} 29.
Rc1 {[%clk 0:02:29.1]} 29... Rfc8 {[%clk 0:01:39.2]} 30. Kf1 {[%clk 0:02:18.6]}
30... Rc5 {[%clk 0:01:26.4]} 31. Ke1 {[%clk 0:02:14.7]} 31... Rd8 {[%clk
0:01:24.9]} 32. Rc2 {[%clk 0:01:52.2]} 32... Rd4 {[%clk 0:01:20.6]} 33. e3
{[%clk 0:01:47.6]} 33... Rb4 {[%clk 0:01:19.3]} 34. Ke2 {[%clk 0:01:39.9]} 34...
Rbc4 {[%clk 0:00:48.8]} 35. h4 {[%clk 0:01:30.5]} 35... Kf8 {[%clk 0:00:46.8]}
36. Ra7 {[%clk 0:01:22.5]} 36... Kg7 {[%clk 0:00:43.1]} 37. Ra6 {[%clk
0:01:12.1]} 37... Kg6 {[%clk 0:00:41.5]} 38. a3 {[%clk 0:01:09.2]} 38... h5
{[%clk 0:00:37]} 39. Rd6 {[%clk 0:00:54.3]} 39... b4 {[%clk 0:00:30.6]} 40. axb4
{[%clk 0:00:50.3]} 40... Rxb4 {[%clk 0:00:29.6]} 41. Ra6 {[%clk 0:00:46.9]}
41... Kf5 {[%clk 0:00:27]} 42. Kd3 {[%clk 0:00:40.3]} 42... Rbc4 {[%clk
0:00:24.9]} 43. Rd6 {[%clk 0:00:30.8]} 43... Ke5 {[%clk 0:00:23.4]} 44. Rd4
{[%clk 0:00:28.5]} 44... Rxd4+ {[%clk 0:00:21.3]} 45. exd4+ {[%clk 0:00:27.3]}
45... Kd5 {[%clk 0:00:18.5]} 46. Rxc3 {[%clk 0:00:26]} 46... Rxc3+ {[%clk
0:00:17.5]} 47. Kxc3 {[%clk 0:00:24.7]} 47... a3 {[%clk 0:00:17]} 48. Kb3 {[%clk
0:00:23.8]} 48... a2 {[%clk 0:00:16.5]} 49. Kxa2 {[%clk 0:00:22.6]} 49... Kxd4
{[%clk 0:00:16.4]} 50. Kb2 {[%clk 0:00:21.1]} 50... Kd3 {[%clk 0:00:16.3]} 51.
Kb3 {[%clk 0:00:18.1]} 51... Ke2 {[%clk 0:00:16.2]} 52. f4 {[%clk 0:00:13.7]}
52... Kf3 {[%clk 0:00:15.4]} 53. Kc4 {[%clk 0:00:12.4]} 53... Kxg3 {[%clk
0:00:14.8]} 54. Kd4 {[%clk 0:00:11.6]} 54... Kxf4 {[%clk 0:00:14.5]} 0-1

[Event "Live Chess"]
[Site "Chess.com"]
[Date "2023.05.21"]
[Round "-"]
[White "MarkLim1"]
[Black "Long1968"]
[Result "1-0"]
[WhiteElo "1680"]
[BlackElo "996"]
[TimeControl "300"]
[EndTime "0:16:34 PDT"]
[Termination "MarkLim1 won on time"]

1. d4 {[%clk 0:04:58.9]} 1... e6 {[%clk 0:04:57.2]} 2. Nf3 {[%clk 0:04:57.5]}
2... c5 {[%clk 0:04:54.4]} 3. e3 {[%clk 0:04:56.1]} 3... Nc6 {[%clk 0:04:51.5]}
4. b3 {[%clk 0:04:52.8]} 4... d5 {[%clk 0:04:48.6]} 5. Bd3 {[%clk 0:04:51.5]}
5... Qc7 {[%clk 0:04:38.6]} 6. Bb2 {[%clk 0:04:49.1]} 6... Bd6 {[%clk
0:04:29.6]} 7. O-O {[%clk 0:04:47.2]} 7... e5 {[%clk 0:04:22.5]} 8. dxe5 {[%clk
0:04:42.4]} 8... Nxe5 {[%clk 0:04:18.5]} 9. Nxe5 {[%clk 0:04:40.3]} 9... Bxe5
{[%clk 0:04:15.5]} 10. Bxe5 {[%clk 0:04:34.2]} 10... Qxe5 {[%clk 0:04:12.1]} 11.
Nd2 {[%clk 0:04:33.7]} 11... Nf6 {[%clk 0:03:54.6]} 12. Nf3 {[%clk 0:04:32.2]}
12... Qe7 {[%clk 0:03:41.8]} 13. Qe2 {[%clk 0:04:24.2]} 13... O-O {[%clk
0:03:32.6]} 14. Rfd1 {[%clk 0:04:23]} 14... Rd8 {[%clk 0:03:24]} 15. Rac1 {[%clk
0:04:20.8]} 15... Bg4 {[%clk 0:03:14.7]} 16. h3 {[%clk 0:04:18]} 16... Bh5
{[%clk 0:03:07.6]} 17. c4 {[%clk 0:04:14.5]} 17... Bxf3 {[%clk 0:02:41.3]} 18.
Qxf3 {[%clk 0:04:12]} 18... dxc4 {[%clk 0:02:28.3]} 19. Bxc4 {[%clk 0:04:03.9]}
19... Qe4 {[%clk 0:02:14.4]} 20. Qxe4 {[%clk 0:03:46.5]} 20... Nxe4 {[%clk
0:02:10.2]} 21. Kf1 {[%clk 0:03:40.8]} 21... a6 {[%clk 0:01:48.5]} 22. a4 {[%clk
0:03:35.6]} 22... Rd6 {[%clk 0:01:24.5]} 23. Ke2 {[%clk 0:03:29.2]} 23... Rad8
{[%clk 0:01:17.5]} 24. Rxd6 {[%clk 0:03:10.8]} 24... Rxd6 {[%clk 0:01:05.4]} 25.
Bd3 {[%clk 0:03:08.8]} 25... f5 {[%clk 0:00:56.7]} 26. f3 {[%clk 0:02:54.8]}
26... Ng3+ {[%clk 0:00:45.2]} 27. Kd2 {[%clk 0:02:53.2]} 27... Rd5 {[%clk
0:00:21.5]} 28. Rc4 {[%clk 0:02:37.9]} 28... Nf1+ {[%clk 0:00:09.1]} 29. Kc3
{[%clk 0:02:28.9]} 29... Ng3 {[%clk 0:00:02.7]} 30. Rf4 {[%clk 0:02:09.4]} 1-0

[Event "Live Chess"]
[Site "Chess.com"]
[Date "2023.05.21"]
[Round "-"]
[White "chessfiction"]
[Black "HoarseyHorsey"]
[Result "1-0"]
[WhiteElo "2350"]
[BlackElo "1447"]
[TimeControl "300"]
[EndTime "0:16:34 PDT"]
[Termination "chessfiction won by resignation"]

1. e4 {[%clk 0:04:59.5]} 1... c5 {[%clk 0:04:56.4]} 2. Nf3 {[%clk 0:04:57.5]}
2... e6 {[%clk 0:04:54.5]} 3. d4 {[%clk 0:04:57.4]} 3... cxd4 {[%clk 0:04:53.6]}
4. c3 {[%clk 0:04:56.8]} 4... dxc3 {[%clk 0:04:52.3]} 5. Nxc3 {[%clk 0:04:56.7]}
5... Nc6 {[%clk 0:04:51.4]} 6. Bg5 {[%clk 0:04:55.4]} 6... Nf6 {[%clk
0:04:50.6]} 7. e5 {[%clk 0:04:54]} 7... h6 {[%clk 0:04:49.7]} 8. Bh4 {[%clk
0:04:50.8]} 8... g5 {[%clk 0:04:48.4]} 9. Bg3 {[%clk 0:04:50.2]} 9... Nh5 {[%clk
0:04:43.3]} 10. Bc4 {[%clk 0:04:48.2]} 10... Nxg3 {[%clk 0:04:40.3]} 11. hxg3
{[%clk 0:04:48.1]} 11... Bg7 {[%clk 0:04:38]} 12. Qe2 {[%clk 0:04:46.4]} 12...
Qa5 {[%clk 0:04:31.6]} 13. O-O {[%clk 0:04:41.7]} 13... Nxe5 {[%clk 0:04:29.7]}
14. Nb5 {[%clk 0:04:37.9]} 14... Nxc4 {[%clk 0:04:20.7]} 15. Qxc4 {[%clk
0:04:37.8]} 15... Bf8 {[%clk 0:04:08.7]} 16. Nc7+ {[%clk 0:04:35.8]} 16... Kd8
{[%clk 0:04:06.5]} 17. Nxa8 {[%clk 0:04:34.1]} 17... d5 {[%clk 0:03:57.4]} 18.
Qc2 {[%clk 0:04:26.1]} 18... Bd6 {[%clk 0:03:40.9]} 19. Rac1 {[%clk 0:04:23.7]}
19... Ke7 {[%clk 0:03:39.9]} 20. Rfe1 {[%clk 0:04:20.7]} 20... Bd7 {[%clk
0:03:33.6]} 21. Nd4 {[%clk 0:04:02.7]} 21... Rxa8 {[%clk 0:03:27.1]} 22. Nf5+
{[%clk 0:04:01.7]} 22... Kf8 {[%clk 0:03:20.9]} 23. Nxd6 {[%clk 0:04:01.6]}
23... Bc6 {[%clk 0:03:15.1]} 24. Qh7 {[%clk 0:03:56.8]} 24... Qc7 {[%clk
0:03:09.3]} 25. Qh8+ {[%clk 0:03:54.5]} 25... Ke7 {[%clk 0:03:07.3]} 26. Nf5+
{[%clk 0:03:53.4]} 26... Kd7 {[%clk 0:03:03.6]} 27. Qxa8 {[%clk 0:03:52]} 1-0

[Event "Live Chess"]
[Site "Chess.com"]
[Date "2023.05.21"]
[Round "-"]
[White "Ian-Morley"]
[Black "LutherSullivan"]
[Result "1-0"]
[WhiteElo "1069"]
[BlackElo "2125"]
[TimeControl "300"]
[EndTime "0:16:43 PDT"]
[Termination "Ian-Morley won by resignation"]

1. e4 {[%clk 0:04:58]} 1... e5 {[%clk 0:04:59.1]} 2. Nf3 {[%clk 0:04:56.9]} 2...
Nc6 {[%clk 0:04:58.8]} 3. Bc4 {[%clk 0:04:55.9]} 3... Nf6 {[%clk 0:04:57.3]} 4.
Ng5 {[%clk 0:04:55.4]} 4... d5 {[%clk 0:04:55.5]} 5. exd5 {[%clk 0:04:54.9]}
5... Na5 {[%clk 0:04:54.8]} 6. Bb5+ {[%clk 0:04:54.4]} 6... c6 {[%clk
0:04:54.2]} 7. dxc6 {[%clk 0:04:53.9]} 7... bxc6 {[%clk 0:04:53.6]} 8. Qf3
{[%clk 0:04:53.3]} 8... Be7 {[%clk 0:04:51.1]} 9. Ne4 {[%clk 0:04:51.8]} 9...
Nxe4 {[%clk 0:04:36.8]} 10. Qxe4 {[%clk 0:04:50.7]} 10... O-O {[%clk 0:04:18.2]}
11. Bxc6 {[%clk 0:04:46.6]} 11... Nxc6 {[%clk 0:04:12.2]} 12. Qxc6 {[%clk
0:04:45.4]} 12... Be6 {[%clk 0:04:11]} 13. Nc3 {[%clk 0:04:41.5]} 13... Rc8
{[%clk 0:04:01.3]} 14. Qa4 {[%clk 0:04:26.3]} 14... Rc4 {[%clk 0:03:56.2]} 15.
Qxa7 {[%clk 0:04:16.6]} 15... Bc5 {[%clk 0:03:52.2]} 16. Qa6 {[%clk 0:04:12.2]}
16... Rf4 {[%clk 0:03:19.4]} 17. O-O {[%clk 0:04:06.7]} 17... Bc4 {[%clk
0:03:16]} 18. Qb7 {[%clk 0:03:58.9]} 18... Bxf1 {[%clk 0:03:13.5]} 19. b4 {[%clk
0:03:44.3]} 19... Bxf2+ {[%clk 0:02:26.5]} 20. Kxf1 {[%clk 0:03:41.5]} 20...
Bd4+ {[%clk 0:02:23.5]} 21. Ke2 {[%clk 0:03:39.5]} 21... Bxc3 {[%clk 0:02:18.7]}
22. dxc3 {[%clk 0:03:34.5]} 22... Rc4 {[%clk 0:01:55.1]} 23. Bd2 {[%clk
0:03:21.9]} 23... Qh4 {[%clk 0:01:43.9]} 24. h3 {[%clk 0:03:11.6]} 24... Rd8
{[%clk 0:01:35.6]} 25. Rd1 {[%clk 0:03:04.1]} 25... Re4+ {[%clk 0:01:29.7]} 26.
Be3 {[%clk 0:02:44.4]} 26... h6 {[%clk 0:01:13]} 27. Rxd8+ {[%clk 0:02:40]}
27... Qxd8 {[%clk 0:01:11.6]} 28. Qxe4 {[%clk 0:02:34.1]} 28... Qd7 {[%clk
0:01:08.6]} 29. Qd3 {[%clk 0:02:24.5]} 29... Qc6 {[%clk 0:01:04.6]} 30. Qd8+
{[%clk 0:02:15.9]} 30... Kh7 {[%clk 0:01:00]} 31. Qd3+ {[%clk 0:02:11]} 31... g6
{[%clk 0:00:56.6]} 32. a3 {[%clk 0:02:04.3]} 32... Qxg2+ {[%clk 0:00:54.8]} 33.
Bf2 {[%clk 0:02:02.6]} 33... h5 {[%clk 0:00:46.3]} 34. Qf3 {[%clk 0:01:57.9]}
1-0

[Event "Live Chess"]
[Site "Chess.com"]
[Date "2023.05.21"]
[Round "-"]
[White "Supertromp"]
[Black "Duke_of_Bebington"]
[Result "1/2-1/2"]
[WhiteElo "2119"]
[BlackElo "1590"]
[TimeControl "300"]
[EndTime "0:17:13 PDT"]
[Termination "Game drawn by repetition"]

1. e4 {[%clk 0:04:57.7]} 1... e5 {[%clk 0:04:58.3]} 2. Nf3 {[%clk 0:04:56.8]}
2... Nf6 {[%clk 0:04:56.4]} 3. Nxe5 {[%clk 0:04:52]} 3... d6 {[%clk 0:04:54.4]}
4. Nf3 {[%clk 0:04:51.3]} 4... Nxe4 {[%clk 0:04:53.6]} 5. Nc3 {[%clk 0:04:50.9]}
5... Nxc3 {[%clk 0:04:51.9]} 6. dxc3 {[%clk 0:04:50.5]} 6... Be7 {[%clk
0:04:50.2]} 7. Be3 {[%clk 0:04:49.8]} 7... Be6 {[%clk 0:04:48.4]} 8. Qd2 {[%clk
0:04:46.6]} 8... Nc6 {[%clk 0:04:43.7]} 9. Bb5 {[%clk 0:04:45.2]} 9... a6 {[%clk
0:04:41.7]} 10. Ba4 {[%clk 0:04:37.7]} 10... O-O {[%clk 0:04:38.1]} 11. O-O
{[%clk 0:04:34.8]} 11... Re8 {[%clk 0:04:24.8]} 12. Nd4 {[%clk 0:04:32.4]} 12...
Nxd4 {[%clk 0:04:22.7]} 13. Bxe8 {[%clk 0:04:31.1]} 13... Nf3+ {[%clk 0:04:04]}
14. gxf3 {[%clk 0:04:29.7]} 14... Qxe8 {[%clk 0:04:03.9]} 15. Rae1 {[%clk
0:04:21.1]} 15... Bh3 {[%clk 0:03:58.3]} 16. Bg5 {[%clk 0:04:10.2]} 16... f6
{[%clk 0:03:50.6]} 17. Qd5+ {[%clk 0:04:08.3]} 17... Kf8 {[%clk 0:03:46.6]} 18.
Bf4 {[%clk 0:03:58.2]} 18... Bxf1 {[%clk 0:03:43.5]} 19. Kxf1 {[%clk 0:03:58.1]}
19... Qb5+ {[%clk 0:03:40.1]} 20. c4 {[%clk 0:03:46.9]} 20... Qxb2 {[%clk
0:03:30.9]} 21. Qe4 {[%clk 0:03:38.9]} 21... Re8 {[%clk 0:03:27.7]} 22. Qxh7
{[%clk 0:03:38.4]} 22... Qxa2 {[%clk 0:03:15.2]} 23. h4 {[%clk 0:03:16.1]} 23...
Qxc4+ {[%clk 0:03:11.5]} 24. Kg2 {[%clk 0:03:03.7]} 24... Qxf4 {[%clk
0:03:09.7]} 25. Qh8+ {[%clk 0:03:00.1]} 25... Kf7 {[%clk 0:03:08.1]} 26. Qh5+
{[%clk 0:02:59.1]} 26... Kf8 {[%clk 0:03:04.4]} 27. Qh8+ {[%clk 0:02:58.1]}
27... Kf7 {[%clk 0:03:03.8]} 28. Qh5+ {[%clk 0:02:57.3]} 28... Kf8 {[%clk
0:03:03]} 29. Qh8+ {[%clk 0:02:56.5]} 1/2-1/2

[Event "Live Chess"]
[Site "Chess.com"]
[Date "2023.05.21"]
[Round "-"]
[White "Singapourfeuj"]
[Black "Biranidun"]
[Result "1-0"]
[WhiteElo "2228"]
[BlackElo "2536"]
[TimeControl "300"]
[EndTime "0:17:46 PDT"]
[Termination "Singapourfeuj won by resignation"]

1. d4 {[%clk 0:04:58.7]} 1... Nf6 {[%clk 0:04:58.8]} 2. Nf3 {[%clk 0:04:57.3]}
2... g6 {[%clk 0:04:58.1]} 3. c4 {[%clk 0:04:54.4]} 3... Bg7 {[%clk 0:04:57.7]}
4. Nc3 {[%clk 0:04:53.5]} 4... d5 {[%clk 0:04:56.9]} 5. cxd5 {[%clk 0:04:51.8]}
5... Nxd5 {[%clk 0:04:56.8]} 6. e4 {[%clk 0:04:50.2]} 6... Nxc3 {[%clk
0:04:56.4]} 7. bxc3 {[%clk 0:04:49.6]} 7... c5 {[%clk 0:04:56.3]} 8. Bc4 {[%clk
0:04:47.6]} 8... Nc6 {[%clk 0:04:53.5]} 9. Be3 {[%clk 0:04:44.7]} 9... Bg4
{[%clk 0:04:47.9]} 10. Bxf7+ {[%clk 0:04:42.9]} 10... Kxf7 {[%clk 0:04:40.9]}
11. Ng5+ {[%clk 0:04:41.5]} 11... Ke8 {[%clk 0:04:37.8]} 12. Qxg4 {[%clk
0:04:39.1]} 12... cxd4 {[%clk 0:04:26.8]} 13. Ne6 {[%clk 0:04:36.6]} 13... Qa5
{[%clk 0:04:18.8]} 14. Nxg7+ {[%clk 0:04:34.4]} 14... Kf7 {[%clk 0:04:18.3]} 15.
Qe6+ {[%clk 0:04:15.1]} 15... Kxg7 {[%clk 0:04:17.2]} 16. Bxd4+ {[%clk 0:04:12]}
16... Nxd4 {[%clk 0:04:15.2]} 17. Qxe7+ {[%clk 0:04:11.1]} 17... Kg8 {[%clk
0:04:06]} 18. O-O {[%clk 0:04:10]} 18... Nc6 {[%clk 0:04:01.8]} 19. Qxb7 {[%clk
0:04:02]} 19... Qd8 {[%clk 0:03:50.4]} 20. Qxc6 {[%clk 0:03:59.5]} 20... Rc8
{[%clk 0:03:49.5]} 21. Qe6+ {[%clk 0:03:57.7]} 21... Kg7 {[%clk 0:03:48.7]} 22.
Rad1 {[%clk 0:03:56.3]} 22... Qg5 {[%clk 0:03:40.4]} 23. Rd7+ {[%clk 0:03:52.2]}
23... Kh6 {[%clk 0:03:39.9]} 24. f4 {[%clk 0:03:45.4]} 24... Qc5+ {[%clk
0:03:32.8]} 25. Kh1 {[%clk 0:03:43.8]} 25... Qxc3 {[%clk 0:03:32.7]} 26. Qe7
{[%clk 0:03:38.2]} 26... Qc5 {[%clk 0:03:22]} 27. Qg7+ {[%clk 0:03:29.1]} 27...
Kh5 {[%clk 0:03:20.9]} 28. Rd5+ {[%clk 0:03:27.8]} 1-0